bitfinex/quotes_SOLUSD_20241113
["timestamp","ask_amount","ask_price","bid_price","bid_amount"]
[1731495091310,22.26593288,207.72,207.66,312.0]
[1731495092115,0.12549,207.76,207.7,22.26593288]
[1731495092317,22.26593288,207.74,207.67,42.26593288]
[1731495092508,22.26593288,207.73,207.66,334.26593288]
[1731495092827,22.26593288,207.71,207.64,37.47013288]
[1731495093011,22.26593288,207.7,207.64,15.2042]
[1731495093213,0.12549,207.71,207.65,22.26593288]
[1731495093521,22.26593288,207.74,207.67,22.26593288]
[1731495093718,22.26593288,207.75,207.68,22.26593288]
[1731495094220,22.75911398,207.77,207.7,22.26593288]
[1731495094422,22.26593288,207.75,207.65,43.776884]
[1731495094600,22.39142288,207.76,207.69,22.26593288]
[1731495094794,0.4931811,207.77,207.74,22.26593288]
[1731495095216,0.4931811,207.77,207.67,0.1]
[1731495095408,0.4931811,207.77,207.65,43.876884]
[1731495095606,0.4931811,207.77,207.67,0.1]
[1731495095925,0.4931811,207.77,207.65,43.776884]
[1731495095926,0.4931811,207.77,207.75,312.0]
[1731495096812,0.4931811,207.77,207.73,22.26593288]
[1731495097028,0.4931811,207.77,207.75,22.26593288]
[1731495097605,0.4931811,207.77,207.71,0.1]
[1731495097606,0.4931811,207.77,207.74,22.26593288]
[1731495098516,0.4931811,207.77,207.72,22.26593288]
[1731495098717,0.4931811,207.77,207.73,20.0]
[1731495099026,0.4931811,207.77,207.73,42.26593288]
[1731495099905,0.4931811,207.77,207.75,20.0]
[1731495101529,0.4931811,207.77,207.75,42.26593288]
[1731495102028,0.4931811,207.77,207.76,22.26593288]
[1731495103100,0.4931811,207.77,207.76,42.26593288]
[1731495105312,0.4931811,207.77,207.76,354.26593288]
[1731495105518,0.4931811,207.77,207.76,332.0]
[1731495106014,22.75911398,207.77,207.71,2.045619]
[1731495106217,22.26593288,207.75,207.68,21.2715]
[1731495106416,22.26593288,207.73,207.68,15.236]
[1731495106925,22.26593288,207.74,207.68,15.236]
[1731495108231,22.26593288,207.73,207.68,15.236]
[1731495108430,22.26593288,207.74,207.68,15.236]
[1731495108609,22.26593288,207.73,207.68,15.236]
[1731495109112,22.26593288,207.73,207.68,327.236]
[1731495109419,22.26593288,207.74,207.68,327.236]
[1731495109919,0.12549,207.76,207.68,15.236]
[1731495110122,0.12549,207.76,207.7,22.26593288]
[1731495110321,22.39142288,207.76,207.69,22.26593288]
[1731495111139,0.4931811,207.77,207.74,22.26593288]
[1731495111412,12.1253,207.9,207.75,0.1]
[1731495111619,22.26593288,207.82,207.75,22.36593288]
[1731495111823,22.26593288,207.82,207.78,0.1]
[1731495112821,22.26593288,207.84,207.78,0.1]
[1731495113024,22.26593288,207.83,207.78,312.1]
[1731495113225,22.26593288,207.82,207.78,312.1]
[1731495113424,22.26593288,207.81,207.78,0.1]
[1731495114233,22.26593288,207.82,207.79,0.1]
[1731495114413,22.26593288,207.82,207.76,0.1]
[1731495114613,22.26593288,207.81,207.76,0.1]
[1731495114819,22.26593288,207.81,207.68,21.8541]
[1731495114820,22.26593288,207.82,207.78,0.1]
[1731495115018,22.26593288,207.83,207.78,0.1]
[1731495115327,0.12549,207.83,207.78,0.1]
[1731495115530,22.26593288,207.82,207.78,0.1]
[1731495115712,4.8104,207.88,207.77,0.1]
[1731495115916,0.12549,207.87,207.79,0.1]
[1731495116619,23.902374,207.87,207.75,312.1]
[1731495116924,22.26593288,207.82,207.75,22.36593288]
[1731495117131,0.12549,207.82,207.76,22.26593288]
[1731495117315,22.39142288,207.82,207.75,22.36593288]
[1731495117515,22.26593288,207.81,207.79,0.1]
[1731495117733,22.26593288,207.81,207.78,0.1]
[1731495118240,22.26593288,207.83,207.79,0.1]
[1731495118413,22.26593288,207.82,207.79,0.1]
[1731495118611,22.26593288,207.82,207.7,22.26593288]
[1731495118612,0.12549,207.79,207.7,0.1]
[1731495118818,22.26593288,207.76,207.72,0.1]
[1731495119016,22.26593288,207.77,207.72,0.1]
[1731495119542,22.26593288,207.75,207.67,22.26593288]
[1731495119720,22.26593288,207.76,207.69,22.26593288]
[1731495119917,22.26593288,207.75,207.69,312.1]
[1731495120319,0.12549,207.75,207.69,312.1]
[1731495120524,0.12549,207.75,207.69,0.1]
[1731495120833,22.26593288,207.78,207.73,0.1]
[1731495121013,22.26593288,207.79,207.73,0.1]
[1731495121642,0.12549,207.78,207.73,0.1]
[1731495121937,22.26593288,207.81,207.75,0.1]
[1731495122140,0.12549,207.8,207.75,0.1]
[1731495122336,22.39142288,207.8,207.75,0.1]
[1731495122537,0.12549,207.8,207.75,0.1]
[1731495123417,0.12549,207.8,207.75,312.1]
[1731495123635,22.26593288,207.84,207.78,0.1]
[1731495123841,22.26593288,207.85,207.78,0.1]
[1731495124148,22.26593288,207.84,207.78,0.1]
[1731495124438,22.26593288,207.86,207.8,0.1]
[1731495124638,22.26593288,207.86,207.79,22.26593288]
[1731495124945,22.26593288,207.86,207.8,0.1]
[1731495126040,22.26593288,207.86,207.75,20.0]
[1731495126041,22.26593288,207.89,207.82,22.36593288]
[1731495126242,22.26593288,207.89,207.82,0.1]
[1731495126434,22.26593288,207.88,207.82,0.1]
[1731495126828,22.26593288,207.89,207.82,22.36593288]
[1731495127429,22.26593288,207.88,207.84,312.0]
[1731495127629,22.26593288,207.87,207.83,0.1]
[1731495128048,22.26593288,207.88,207.83,0.1]
[1731495128424,22.26593288,207.89,207.83,0.1]
[1731495128840,22.26593288,207.88,207.8,22.26593288]
[1731495129032,22.26593288,207.87,207.83,0.1]
[1731495129432,22.26593288,207.86,207.83,0.1]
[1731495129654,22.26593288,207.84,207.79,0.1]
[1731495129835,22.26593288,207.83,207.79,0.1]
[1731495130352,22.26593288,207.88,207.81,0.1]
[1731495130544,22.26593288,207.89,207.82,22.26593288]
[1731495130745,22.26593288,207.89,207.84,312.0]
[1731495130934,22.26593288,207.88,207.84,312.0]
[1731495131360,22.26593288,207.89,207.85,0.1]
[1731495131855,0.4931811,207.98,207.89,0.1]
[1731495132032,22.26593288,207.97,207.89,0.1]
[1731495132238,0.4931811,207.98,207.9,22.26593288]
[1731495132436,22.75911398,207.98,207.91,0.1]
[1731495132837,14.35335675,207.98,207.91,0.1]
[1731495133035,0.4931811,207.98,207.91,0.1]
[1731495133664,13.86017565,207.97,207.91,0.1]
[1731495134158,0.4931811,207.98,207.92,13.86017565]
[1731495134361,0.4931811,207.98,207.93,0.1]
[1731495134652,0.4931811,207.98,207.96,312.0]
[1731495136553,0.4931811,207.98,207.97,22.17327071]
[1731495136867,0.4931811,207.98,207.97,37.89017071]
[1731495139771,0.4931811,207.98,207.97,349.89017071]
[1731495142668,0.4931811,207.98,207.97,15.6169]
[1731495142859,0.4931811,207.98,207.97,15.7169]
[1731495143060,22.66645181,207.98,207.93,0.1]
[1731495143271,22.17327071,207.97,207.93,0.1]
[1731495143571,0.4931811,207.98,207.93,22.27327071]
[1731495143777,0.4931811,207.98,207.96,22.27327071]
[1731495143950,0.4931811,207.98,207.96,0.1]
[1731495144688,0.4931811,207.98,207.96,22.27327071]
[1731495145055,0.4931811,207.98,207.96,0.1]
[1731495145355,0.4931811,207.98,207.96,22.27327071]
[1731495145571,0.4931811,207.98,207.96,334.27327071]
[1731495146849,0.4931811,207.98,207.96,312.1]
[1731495148460,0.4931811,207.98,207.96,0.1]
[1731495151069,0.4931811,207.98,207.96,22.27327071]
[1731495151379,0.4931811,207.98,207.97,312.0]
[1731495152781,0.4931811,207.98,207.94,0.1]
[1731495152989,0.4931811,207.98,207.97,0.1]
[1731495153890,0.4931811,207.98,207.95,22.17327071]
[1731495154069,0.4931811,207.98,207.97,0.1]
[1731495154459,0.4931811,207.98,207.94,22.27327071]
[1731495154667,0.4931811,207.98,207.97,0.1]
[1731495155572,0.4931811,207.98,207.93,22.17327071]
[1731495155573,0.4931811,207.98,207.95,0.1]
[1731495155769,0.4931811,207.98,207.97,312.0]
[1731495155975,0.4931811,207.98,207.97,312.1]
[1731495156387,0.4931811,207.98,207.97,312.0]
[1731495156565,22.66645181,207.98,207.97,312.0]
[1731495156765,14.35571014,207.98,207.91,16.0029]
[1731495156966,13.86252904,207.95,207.92,0.1]
[1731495157188,0.4931811,207.98,207.92,0.1]
[1731495157379,13.86252904,207.96,207.91,16.0029]
[1731495157577,13.86252904,207.94,207.91,0.1]
[1731495157783,13.86252904,207.94,207.89,0.1]
[1731495157973,13.86252904,207.97,207.92,0.1]
[1731495158370,13.86252904,207.96,207.92,0.1]
[1731495158587,0.4931811,207.98,207.92,0.1]
[1731495158588,0.4931811,207.98,207.93,36.42162904]
[1731495158771,0.4931811,207.98,207.97,13.96252904]
[1731495159397,0.4931811,207.98,207.97,0.1]
[1731495159889,0.4931811,207.98,207.97,312.1]
[1731495163892,0.4931811,207.98,207.97,325.96252904]
[1731495164076,10.0,208.03,207.97,325.96252904]
[1731495164278,10.0,208.03,207.93,22.5591]
[1731495164279,10.0,208.03,208.02,29.77632904]
[1731495167181,10.0,208.03,208.02,341.77632904]
[1731495167688,10.0,208.03,208.02,348.25142904]
[1731495167890,10.0,208.03,208.02,334.3889]
[1731495168096,19.86253004,208.14,208.02,348.25142904]
[1731495168315,19.83824663,208.14,208.08,0.1]
[1731495168602,19.83824663,208.14,208.02,22.2889]
[1731495168603,6.000001,208.14,208.11,0.1]
[1731495168801,6.000001,208.14,208.05,0.1]
[1731495168802,13.83824563,208.12,208.05,0.1]
[1731495168983,13.83824563,208.12,208.08,0.1]
[1731495169180,6.000001,208.14,208.1,0.1]
[1731495169899,6.000001,208.14,208.06,0.1]
[1731495169900,13.83824563,208.11,208.06,0.1]
[1731495170113,13.83824563,208.1,208.07,0.1]
[1731495170602,13.83824563,208.11,208.07,0.1]
[1731495171211,13.83824563,208.11,208.07,312.1]
[1731495171589,6.000001,208.14,208.07,312.1]
[1731495171590,13.83824563,208.1,208.07,312.0]
[1731495172497,13.83824563,208.11,208.07,312.0]
[1731495172702,13.83824563,208.11,208.07,312.1]
[1731495173391,13.83824563,208.11,208.07,312.0]
[1731495174400,13.83824563,208.1,208.07,312.0]
[1731495174604,13.83824563,208.09,208.03,0.1]
[1731495174905,13.83824563,208.07,208.03,0.1]
[1731495175583,13.83824563,208.07,208.0,13.93824563]
[1731495175784,6.000001,208.14,208.0,13.93824563]
[1731495175785,6.000001,208.14,208.07,0.1]
[1731495176003,6.000001,208.14,208.07,13.93824563]
[1731495176504,6.000001,208.14,208.11,0.1]
[1731495177708,6.000001,208.14,208.13,312.0]
[1731495178290,19.83824663,208.14,208.13,312.0]
[1731495178702,24.64264663,208.14,208.06,29.91564563]
[1731495179212,13.83824563,208.1,208.04,0.1]
[1731495179412,13.83824563,208.08,208.04,0.1]
[1731495179992,13.83824563,208.08,208.01,0.1]
[1731495180410,13.83824563,208.08,208.06,0.1]
[1731495181812,13.83824563,208.08,208.06,312.1]
[1731495182115,13.83824563,208.08,208.06,0.1]
[1731495182490,13.83824563,208.08,208.01,0.1]
[1731495183792,13.83824563,208.08,208.03,0.1]
[1731495183999,13.83824563,208.08,208.01,0.1]
[1731495185217,13.83824563,208.08,208.04,312.0]
[1731495185511,13.83824563,208.06,208.04,312.0]
[1731495186308,13.83824563,208.05,208.0,0.1]
[1731495186495,13.83824563,208.02,208.0,0.1]
[1731495186808,13.83824563,208.03,208.0,0.1]
[1731495187514,13.83824563,208.1,208.02,0.1]
[1731495187515,13.83824563,208.07,208.02,0.1]
[1731495188115,4.8053,208.1,208.02,0.1]
[1731495188116,13.83824563,208.05,208.02,0.1]
[1731495188298,6.000001,208.14,208.04,0.1]
[1731495188612,13.83824563,208.1,208.04,0.1]
[1731495188797,4.8046,208.13,208.04,0.1]
[1731495188798,13.84412839,208.09,208.04,0.1]
[1731495189310,13.84412839,208.06,208.05,312.0]
[1731495189705,13.84412839,208.06,208.02,0.1]
[1731495189904,13.84412839,208.04,207.99,0.1]
[1731495190114,13.84412839,208.01,207.99,0.1]
[1731495190327,13.84412839,208.03,207.99,0.1]
[1731495190819,13.84412839,208.03,207.95,13.94412839]
[1731495190998,13.84412839,208.03,207.98,0.1]
[1731495191401,13.84412839,208.03,207.95,13.84412839]
[1731495191402,13.84412839,208.03,207.96,0.1]
[1731495191600,13.84412839,208.03,207.98,0.1]
[1731495191800,13.84412839,208.03,207.96,0.1]
[1731495192016,13.84412839,207.99,207.94,16.5007]
[1731495192318,13.84412839,207.99,207.94,16.4007]
[1731495192498,13.84412839,207.99,207.95,0.1]
[1731495192699,13.84412839,207.99,207.95,312.1]
[1731495193223,4.8056,208.09,207.96,13.94412839]
[1731495193405,23.56499851,208.14,207.94,16.4007]
[1731495193406,22.730001,208.14,208.03,13.94412839]
[1731495193741,13.84412839,208.11,208.03,13.94412839]
[1731495194097,6.000001,208.14,208.08,0.1]
[1731495194316,19.84412939,208.14,208.08,0.1]
[1731495195398,19.84412939,208.14,208.1,0.1]
[1731495196306,19.84412939,208.14,208.11,312.0]
[1731495197517,13.84412839,208.12,208.11,312.0]
[1731495197920,19.84412939,208.14,208.11,312.0]
[1731495198421,0.12549,208.11,208.06,0.1]
[1731495198626,0.12549,208.11,208.04,15.6625]
[1731495198828,0.12549,208.11,208.06,0.1]
[1731495199122,13.84412839,208.1,208.06,0.1]
[1731495199320,13.84412839,208.1,208.04,15.6625]
[1731495199922,13.96961839,208.05,207.97,0.1]
[1731495200112,13.84412839,208.03,207.97,0.1]
[1731495200314,13.84412839,208.03,207.96,29.55382839]
[1731495200497,13.84412839,208.04,207.99,0.1]
[1731495200701,13.84412839,208.07,207.99,0.1]
[1731495200923,13.84412839,208.07,208.0,13.84412839]
[1731495201424,13.84412839,208.09,208.02,13.94412839]
[1731495202020,13.84412839,208.09,208.02,0.1]
[1731495202406,13.84412839,208.07,208.02,0.1]
[1731495202921,13.84412839,208.05,208.0,0.1]
[1731495203331,13.84412839,208.07,208.01,0.1]
[1731495203827,13.84412839,208.07,208.03,0.1]
[1731495204023,13.84412839,208.07,207.98,13.84412839]
[1731495204323,13.84412839,208.07,208.0,0.1]
[1731495204518,13.84412839,208.07,208.03,0.1]
[1731495205125,13.84412839,208.07,208.04,312.0]
[1731495208299,13.84412839,208.07,208.01,0.1]
[1731495208504,13.84412839,208.07,208.04,0.1]
[1731495209810,4.8052,208.11,208.04,0.1]
[1731495209811,13.84412839,208.09,208.04,0.1]
[1731495210715,13.84412839,208.09,208.06,0.1]
[1731495211027,4.8046,208.13,208.06,0.1]
[1731495211028,13.84412839,208.11,208.06,0.1]
[1731495211209,13.84412839,208.09,208.06,0.1]
[1731495211529,13.84412839,208.09,208.06,312.1]
[1731495213023,13.84412839,208.09,208.06,0.1]
[1731495213207,13.84412839,208.09,208.03,0.1]
[1731495213412,13.84412839,208.09,208.06,0.1]
[1731495215227,13.84412839,208.13,208.08,0.1]
[1731495215732,6.000001,208.14,208.08,0.1]
[1731495215733,6.000001,208.14,208.1,0.1]
[1731495216258,6.000001,208.14,208.11,312.0]
[1731495217501,6.000001,208.14,208.13,0.1]
[1731495217720,10.0,208.17,208.13,35.54092839]
[1731495217913,10.0,208.17,208.16,13.94412839]
[1731495219131,0.4931811,208.19,208.16,13.94412839]
[1731495219433,20.0,208.3,208.27,0.1]
[1731495219939,20.0,208.3,208.19,15.4218]
[1731495219940,20.0,208.3,208.28,0.1]
[1731495220528,20.0,208.3,208.28,13.94412839]
[1731495220730,20.0,208.3,208.29,312.0]
[1731495223625,20.0,208.3,208.29,325.84412839]
[1731495224935,20.0,208.3,208.29,312.0]
[1731495226035,20.0,208.3,208.29,325.84412839]
[1731495229539,20.0,208.3,208.29,312.0]
[1731495229718,20.0,208.3,208.28,0.1]
[1731495230048,20.0,208.3,208.29,0.1]
[1731495230924,20.0,208.3,208.27,0.1]
[1731495231311,38.64502839,208.3,208.23,0.1]
[1731495231510,13.84412839,208.28,208.23,0.1]
[1731495231719,13.84412839,208.27,208.21,16.5761]
[1731495232020,13.84412839,208.28,208.23,0.1]
[1731495232339,13.84412839,208.29,208.23,0.1]
[1731495232833,13.84412839,208.29,208.24,312.0]
[1731495233027,13.84412839,208.29,208.25,0.1]
[1731495233211,20.0,208.3,208.25,13.94412839]
[1731495233413,20.0,208.3,208.27,0.1]
[1731495236321,20.0,208.3,208.27,312.1]
[1731495236733,20.0,208.3,208.29,0.1]
[1731495239135,20.0,208.3,208.29,13.94412839]
[1731495239739,20.0,208.3,208.29,325.94412839]
[1731495243519,0.4931811,208.39,208.38,0.1]
[1731495244121,0.4931811,208.39,208.38,13.94412839]
[1731495245725,0.4931811,208.39,208.38,29.85892839]
[1731495246740,0.4931811,208.39,208.38,341.85892839]
[1731495248345,0.4931811,208.39,208.38,341.57086839]
[1731495248826,0.12549,208.38,208.36,0.0997389]
[1731495249033,13.84412839,208.37,208.36,0.0997389]
[1731495249730,19.13610949,208.39,208.36,0.0997389]
[1731495250051,13.84412839,208.37,208.36,0.0997389]
[1731495250445,13.96961839,208.37,208.36,0.0997389]
[1731495250650,18.76871839,208.37,208.36,0.0997389]
[1731495250832,4.92459,208.37,208.36,0.0997389]
[1731495251150,18.76871839,208.37,208.36,0.0997389]
[1731495252052,14.33730949,208.39,208.36,0.0997389]
[1731495252255,13.84412839,208.37,208.36,0.0997389]
[1731495253769,13.96961839,208.37,208.36,0.0997389]
[1731495254857,37.84650239,208.37,208.36,0.0997389]
[1731495255036,17.02319,208.36,208.2,29.03362839]
[1731495255235,13.84412839,208.28,208.2,29.03362839]
[1731495255452,13.84412839,208.28,208.27,312.0]
[1731495255639,18.64542839,208.28,208.2,15.1895]
[1731495256237,13.84412839,208.24,208.16,29.66062839]
[1731495256455,4.8013,208.28,208.16,15.8165]
[1731495256456,13.84412839,208.22,208.16,15.8165]
[1731495257338,13.84412839,208.26,208.18,13.84412839]
[1731495257843,18.64582839,208.26,208.16,29.66062839]
[1731495258034,13.84412839,208.24,208.16,15.8165]
[1731495258640,13.84412839,208.24,208.2,312.0]
[1731495258841,13.84412839,208.22,208.14,13.84412839]
[1731495259360,13.84412839,208.2,208.12,13.84412839]
[1731495259566,13.84412839,208.2,208.11,15.5369]
[1731495259567,13.84412839,208.18,208.11,15.5369]
[1731495259749,13.84412839,208.18,208.08,6.3938]
[1731495259750,0.12549,208.15,208.06,15.4]
[1731495259938,0.12549,208.15,208.03,6.283]
[1731495260133,13.84412839,208.1,208.01,29.24412839]
[1731495260335,13.84412839,208.12,208.05,13.84412839]
[1731495260559,13.84412839,208.14,208.05,13.84412839]
[1731495260747,22.14163591,208.14,208.06,22.14163591]
[1731495260950,22.14163591,208.16,208.08,22.14163591]
[1731495261293,22.14163591,208.18,208.1,22.14163591]
[1731495261649,26.94513591,208.18,208.1,22.14163591]
[1731495261846,22.14163591,208.18,208.1,334.14163591]
[1731495262248,22.14163591,208.16,208.08,22.14163591]
[1731495262450,22.14163591,208.16,208.06,22.14163591]
[1731495262943,22.14163591,208.12,208.04,22.14163591]
[1731495263463,22.14163591,208.14,208.06,22.14163591]
[1731495263658,22.14163591,208.18,208.1,22.14163591]
[1731495263961,22.14163591,208.16,208.08,22.14163591]
[1731495265143,22.14163591,208.16,208.06,22.14163591]
[1731495265144,22.14163591,208.14,208.06,22.14163591]
[1731495265354,22.14163591,208.16,208.08,334.14163591]
[1731495266245,22.14163591,208.16,208.08,22.14163591]
[1731495266860,22.14163591,208.16,208.06,22.14163591]
[1731495267163,22.14163591,208.16,208.01,15.6]
[1731495267164,22.14163591,208.1,208.02,22.14163591]
[1731495267742,22.14163591,208.12,208.02,22.14163591]
[1731495268246,22.14163591,208.08,208.0,22.14163591]
[1731495268562,22.14163591,208.1,208.02,22.14163591]
[1731495269257,22.14163591,208.1,208.05,312.0]
[1731495271268,6.3679,208.12,208.04,22.14163591]
[1731495271269,22.14163591,208.12,208.04,22.14163591]
[1731495271968,22.14163591,208.14,208.06,22.14163591]
[1731495272270,22.14163591,208.12,208.04,22.14163591]
[1731495272870,26.94653591,208.12,208.04,22.14163591]
[1731495273874,22.14163591,208.1,208.02,22.14163591]
[1731495274253,22.14163591,208.1,208.05,312.0]
[1731495275371,22.14163591,208.12,208.05,312.0]
[1731495275784,22.14163591,208.12,208.04,22.14163591]
[1731495275949,22.14163591,208.1,208.02,22.14163591]
[1731495276154,22.14163591,208.12,208.06,22.14163591]
[1731495276654,22.14163591,208.1,208.01,22.14163591]
[1731495276852,22.14163591,208.06,207.94,22.7847]
[1731495277067,22.14163591,208.06,207.99,22.14163591]
[1731495277384,22.14163591,208.1,208.01,22.14163591]
[1731495277554,6.4764,208.16,207.94,22.7847]
[1731495277555,22.14163591,208.08,207.99,22.14163591]
[1731495277754,22.14163591,208.06,207.99,22.14163591]
[1731495277961,22.14163591,208.06,207.97,22.14163591]
[1731495278676,22.14163591,208.06,207.99,312.0]
[1731495279077,26.94793591,208.06,207.99,312.0]
[1731495279372,22.14163591,208.01,207.9,22.14163591]
[1731495279573,22.14163591,207.95,207.88,38.00423591]
[1731495279774,22.14163591,207.98,207.9,22.14163591]
[1731495280579,22.14163591,208.0,207.92,22.14163591]
[1731495280877,11.2607,208.06,207.96,13.85158522]
[1731495280878,13.85158522,208.04,207.96,13.85158522]
[1731495281076,13.85158522,208.02,207.94,13.85158522]
[1731495281964,13.85158522,208.04,207.96,13.85158522]
[1731495282474,13.85158522,208.04,208.0,312.0]
[1731495282870,13.85158522,208.02,208.0,312.0]
[1731495284680,13.85158522,208.01,207.91,13.85158522]
[1731495285178,13.85158522,208.03,207.95,13.85158522]
[1731495285386,13.85158522,208.01,207.93,13.85158522]
[1731495285784,13.85158522,207.99,207.91,13.85158522]
[1731495287063,13.85158522,208.01,207.88,15.8626]
[1731495287278,13.85158522,208.01,207.94,13.85158522]
[1731495287457,13.85158522,208.01,207.95,312.0]
[1731495287993,13.85158522,208.01,207.94,13.85158522]
[1731495288677,13.85158522,207.99,207.88,15.8626]
[1731495288867,13.85158522,207.99,207.92,13.85158522]
[1731495289372,13.85158522,208.0,207.92,13.85158522]
[1731495290970,13.85158522,208.0,207.95,312.0]
[1731495293867,13.85158522,207.99,207.95,312.0]
[1731495294286,13.85158522,208.0,207.95,312.0]
[1731495294583,13.85158522,208.02,207.94,13.85158522]
[1731495295386,13.85158522,208.02,207.95,13.85158522]
[1731495296384,13.85158522,208.02,207.95,15.92016179]
[1731495296977,13.85158522,208.03,207.96,13.85158522]
[1731495297362,13.85158522,208.03,207.99,312.0]
[1731495297870,6.4544,208.06,208.0,13.85158522]
[1731495298184,29.87158522,208.07,207.95,2.06857657]
[1731495298377,13.85158522,208.07,207.94,20.1]
[1731495298582,13.85158522,208.04,207.97,13.85158522]
[1731495299074,13.85158522,208.03,207.95,13.85158522]
[1731495299270,13.85158522,208.04,207.96,13.85158522]
[1731495300983,13.85158522,208.04,208.02,312.0]
[1731495301490,13.85158522,208.04,207.86,6.4265]
[1731495301663,13.85158522,208.01,207.92,13.85158522]
[1731495302086,13.85158522,207.99,207.86,6.3265]
[1731495302282,13.85158522,207.97,207.88,29.71418522]
[1731495303181,13.85158522,207.99,207.9,13.85158522]
[1731495303372,13.85158522,207.99,207.92,13.85158522]
[1731495303697,6.0137,208.01,207.94,13.85158522]
[1731495303698,19.86528522,208.01,207.94,13.85158522]
[1731495303910,16.27,208.02,207.94,13.85158522]
[1731495304077,13.85158522,208.03,207.96,13.85158522]
[1731495304684,13.85158522,208.03,208.0,312.0]
[1731495304902,13.85158522,208.01,207.89,13.85158522]
[1731495305185,13.85158522,207.99,207.91,13.85158522]
[1731495306884,13.85158522,207.99,207.89,13.85158522]
[1731495307284,13.85158522,207.97,207.89,13.85158522]
[1731495307790,13.85158522,207.93,207.85,13.85158522]
[1731495308092,13.85158522,207.93,207.92,312.0]
[1731495308395,13.85158522,207.93,207.81,13.85158522]
[1731495308568,13.85158522,207.9,207.81,13.85158522]
[1731495309275,13.85158522,207.87,207.79,13.85158522]
[1731495309486,13.85158522,207.9,207.82,13.85158522]
[1731495310185,13.85158522,207.92,207.84,13.85158522]
[1731495310379,11.2485,207.97,207.86,13.85158522]
[1731495310579,13.85158522,207.93,207.86,13.85158522]
[1731495310775,13.85158522,207.93,207.84,13.85158522]
[1731495310974,11.2485,207.97,207.84,13.85158522]
[1731495310975,13.85158522,207.91,207.84,13.85158522]
[1731495311383,13.85158522,207.87,207.76,7.84685645]
[1731495311575,13.85158522,207.85,207.78,13.85158522]
[1731495311771,13.85158522,207.85,207.76,21.69844167]
[1731495311995,13.85158522,207.85,207.78,13.85158522]
[1731495312598,13.85158522,207.89,207.82,13.85158522]
[1731495312892,13.85158522,207.89,207.8,13.85158522]
[1731495313083,13.85158522,207.87,207.8,13.85158522]
[1731495313489,13.85158522,207.87,207.78,13.85158522]
[1731495314597,13.85158522,207.87,207.83,312.0]
[1731495315293,13.85158522,207.85,207.83,312.0]
[1731495315492,13.85158522,207.85,207.76,13.85158522]
[1731495315700,22.721,207.87,207.82,13.85158522]
[1731495315992,13.85158522,207.9,207.82,13.85158522]
[1731495316383,13.85158522,207.84,207.72,13.85158522]
[1731495316699,13.85158522,207.75,207.67,0.4931811]
[1731495317493,13.85158522,207.79,207.7,13.85158522]
[1731495317797,0.8,207.82,207.67,0.4931811]
[1731495317798,13.85158522,207.81,207.72,13.85158522]
[1731495318512,0.8,207.82,207.75,312.0]
[1731495319502,13.85158522,207.81,207.75,312.0]
[1731495320192,0.8,207.82,207.75,312.0]
[1731495320694,13.85158522,207.79,207.75,312.0]
[1731495321080,13.85158522,207.77,207.7,13.85158522]
[1731495321284,13.85158522,207.77,207.68,13.85158522]
[1731495321484,13.85158522,207.77,207.57,0.1]
[1731495321485,13.85158522,207.73,207.63,13.85158522]
[1731495321690,13.85158522,207.71,207.61,13.85158522]
[1731495321896,13.85158522,207.67,207.55,16.42867159]
[1731495322202,13.85158522,207.67,207.53,6.1808]
[1731495322405,13.85158522,207.63,207.48,2.10084621]
[1731495322699,13.85158522,207.63,207.48,6.1808]
[1731495322884,13.85158522,207.63,207.53,13.85158522]
[1731495323087,23.876884,207.53,207.46,0.4931811]
[1731495323388,37.62846922,207.47,207.46,0.4931811]
[1731495323701,13.85158522,207.52,207.46,0.4931811]
[1731495324198,13.85158522,207.48,207.46,0.4931811]
[1731495324585,0.1,207.56,207.46,0.4931811]
[1731495324787,18.94540675,207.63,207.46,0.4931811]
[1731495324788,16.2773,207.61,207.47,22.26815438]
[1731495324978,11.1968,207.62,207.46,0.4931811]
[1731495324979,22.26815438,207.57,207.49,22.26815438]
[1731495325583,0.12549,207.49,207.46,0.4931811]
[1731495325782,66.17052838,207.47,207.46,0.4931811]